bitfinex/quotes_BTCUSD_20241022
["timestamp","ask_amount","ask_price","bid_price","bid_amount"]
[1729631338532,0.21055479,67461.0,67460.0,0.0041154]
[1729631339001,0.2772597,67461.0,67460.0,0.0041154]
[1729631339916,0.21055479,67461.0,67460.0,0.0041154]
[1729631340151,0.37471933,67461.0,67460.0,0.0041154]
[1729631341802,0.52295233,67461.0,67460.0,0.0041154]
[1729631343476,0.52295044,67461.0,67460.0,0.0041154]
[1729631344125,0.52295165,67461.0,67460.0,0.0041154]
[1729631345083,0.37471865,67461.0,67460.0,0.0041154]
[1729631346406,0.47756166,67461.0,67460.0,0.0041154]
[1729631348196,0.38861785,67461.0,67460.0,0.000826]
[1729631348402,0.47756166,67461.0,67460.0,0.0041154]
[1729631351225,0.46366246,67461.0,67460.0,0.0041154]
[1729631353661,0.46367531,67461.0,67460.0,0.0041154]
[1729631355257,0.46367531,67461.0,67452.0,0.22279009]
[1729631355258,0.0949,67449.0,67437.0,0.06669593]
[1729631355487,0.0949,67449.0,67437.0,0.24517396]
[1729631355488,0.53438801,67438.0,67437.0,0.24517396]
[1729631355741,0.64347922,67438.0,67437.0,0.22196409]
[1729631355962,0.64347922,67438.0,67431.0,0.000838]
[1729631355963,0.40029522,67438.0,67431.0,0.000838]
[1729631356185,0.23719423,67432.0,67431.0,0.000838]
[1729631356408,0.19335182,67432.0,67431.0,0.000838]
[1729631356627,0.35212693,67432.0,67431.0,0.000838]
[1729631356841,0.35556367,67432.0,67431.0,0.000838]
[1729631357314,0.31117108,67432.0,67431.0,0.000838]
[1729631357532,0.32503668,67432.0,67431.0,0.000838]
[1729631363313,0.17673968,67432.0,67431.0,0.000838]
[1729631363528,0.16287408,67432.0,67431.0,0.000838]
[1729631365505,0.17673968,67432.0,67431.0,0.000838]
[1729631367123,0.16287408,67432.0,67431.0,0.000838]
[1729631367360,0.17673968,67432.0,67431.0,0.000838]
[1729631368235,0.16287408,67432.0,67431.0,0.000838]
[1729631369613,0.17669389,67432.0,67431.0,0.000838]
[1729631370671,0.16287408,67432.0,67431.0,0.000838]
[1729631371861,0.31117108,67432.0,67431.0,0.000838]
[1729631372072,0.32499089,67432.0,67431.0,0.000838]
[1729631372299,0.32499091,67432.0,67431.0,0.000838]
[1729631372531,0.17669391,67432.0,67431.0,0.000838]
[1729631372747,0.16287408,67432.0,67431.0,0.000838]
[1729631374077,0.17669391,67432.0,67431.0,0.000838]
[1729631374290,0.16287408,67432.0,67431.0,0.000838]
[1729631378218,0.31117108,67432.0,67431.0,0.000838]
[1729631379702,0.3249965,67432.0,67431.0,0.000838]
[1729631382384,0.32502675,67432.0,67431.0,0.000838]
[1729631382627,0.17672975,67432.0,67431.0,0.000838]
[1729631382840,0.1760676,67432.0,67431.0,0.000838]
[1729631383057,0.0277706,67432.0,67431.0,0.000838]
[1729631384375,0.32502675,67432.0,67431.0,0.000838]
[1729631385926,0.70823517,67432.0,67431.0,0.000838]
[1729631386170,0.50018068,67432.0,67431.0,0.000838]
[1729631386377,0.54632953,67432.0,67431.0,0.000838]
[1729631387513,0.56932953,67432.0,67431.0,0.000838]
[1729631387728,0.71828868,67432.0,67431.0,0.000838]
[1729631387948,0.54632953,67432.0,67431.0,0.000838]
[1729631389557,0.53241993,67432.0,67431.0,0.000838]
[1729631389769,0.54642322,67432.0,67431.0,0.000838]
[1729631392674,0.79138731,67432.0,67431.0,0.000838]
[1729631392879,0.71838237,67432.0,67431.0,0.000838]
[1729631393322,0.70448598,67432.0,67431.0,0.000838]
[1729631393536,0.71836406,67432.0,67431.0,0.000838]
[1729631393756,0.54640491,67432.0,67431.0,0.000838]
[1729631394421,0.59061617,67432.0,67431.0,0.000838]
[1729631396158,0.56940491,67432.0,67431.0,0.000838]
[1729631396371,0.63572181,67432.0,67431.0,0.000838]
[1729631396841,0.56940491,67432.0,67431.0,0.000838]
[1729631397056,0.71836406,67432.0,67431.0,0.000838]
[1729631397496,0.97029289,67432.0,67431.0,0.000838]
[1729631398395,0.99239852,67432.0,67431.0,0.000838]
[1729631399292,0.88187036,67432.0,67431.0,0.000838]
[1729631399738,0.86799228,67432.0,67431.0,0.000838]
[1729631400629,0.86829179,67432.0,67431.0,0.000838]
[1729631401360,1.00141651,67432.0,67431.0,0.000838]
[1729631403242,0.86829179,67432.0,67431.0,0.000838]
[1729631404629,0.70448598,67432.0,67431.0,0.000838]
[1729631407097,0.86840909,67432.0,67431.0,0.000838]
[1729631408079,0.70448598,67432.0,67431.0,0.000838]
[1729631417495,0.86840921,67432.0,67431.0,0.000838]
[1729631422462,1.00162936,67432.0,67431.0,0.000838]
[1729631423410,0.86840921,67432.0,67431.0,0.000838]
[1729631426138,0.86855415,67432.0,67431.0,0.000838]
[1729631430716,0.70448598,67432.0,67431.0,0.000838]
[1729631430942,0.86868837,67432.0,67431.0,0.000838]
[1729631431410,1.01881627,67432.0,67431.0,0.000838]
[1729631431653,1.11028086,67432.0,67431.0,0.000838]
[1729631432572,0.96015296,67432.0,67431.0,0.000838]
[1729631432867,0.97406443,67432.0,67431.0,0.000838]
[1729631435705,0.97413734,67432.0,67431.0,0.000838]
[1729631436173,0.96022587,67432.0,67431.0,0.000838]
[1729631436408,0.97413542,67432.0,67431.0,0.000838]
[1729631436870,0.96022587,67432.0,67431.0,0.000838]
[1729631437801,0.96022587,67432.0,67431.0,0.00045728]
[1729631439452,0.78512587,67432.0,67431.0,0.00045728]
[1729631439686,0.78638118,67432.0,67431.0,0.00045728]
[1729631440397,0.7864019,67432.0,67431.0,0.00045728]
[1729631442872,0.8003092,67432.0,67431.0,0.00045728]
[1729631443338,0.80029774,67432.0,67431.0,0.00045728]
[1729631443530,0.94925689,67432.0,67431.0,0.00045728]
[1729631443745,0.93534959,67432.0,67431.0,0.00045728]
[1729631445085,0.93531855,67432.0,67431.0,0.00045728]
[1729631449723,0.62085057,67432.0,67431.0,0.00045728]
[1729631449940,0.93535353,67432.0,67431.0,0.00045728]
[1729631450235,0.78514316,67432.0,67431.0,0.00045728]
[1729631450486,0.93535222,67432.0,67431.0,0.00045728]
[1729631451982,0.94925784,67432.0,67431.0,0.00045728]
[1729631453185,0.94925781,67432.0,67431.0,0.00045728]
[1729631454693,0.94918977,67432.0,67431.0,0.00045728]
[1729631455627,0.95084177,67432.0,67431.0,0.00045728]
[1729631459666,0.80066438,67432.0,67431.0,0.00045728]
[1729631460572,0.95085022,67432.0,67431.0,0.00045728]
[1729631464297,0.95085178,67432.0,67431.0,0.00045728]
[1729631464930,0.93694493,67432.0,67431.0,0.00045728]
[1729631465580,0.78675909,67432.0,67431.0,0.00045728]
[1729631466459,0.93694493,67432.0,67431.0,0.00045728]
[1729631466663,0.63779994,67432.0,67431.0,0.00045728]
[1729631467998,0.47354342,67432.0,67431.0,0.00045728]
[1729631468214,0.63780958,67432.0,67431.0,0.00045728]
[1729631476998,0.65170957,67432.0,67431.0,0.00045728]
[1729631479074,0.63780958,67432.0,67431.0,0.00045728]
[1729631481842,0.63766592,67432.0,67431.0,0.00045728]
[1729631483058,0.78662507,67432.0,67431.0,0.00045728]
[1729631485951,0.65155899,67432.0,67431.0,0.00045728]
[1729631486619,0.65154304,67432.0,67431.0,0.00045728]
[1729631490132,0.63764997,67432.0,67431.0,0.00045728]
[1729631491411,0.63764924,67432.0,67431.0,0.00045728]
[1729631496030,0.65154725,67432.0,67431.0,0.00045728]
[1729631500800,0.8005064,67432.0,67431.0,0.00045728]
[1729631501019,0.78660839,67432.0,67431.0,0.00045728]
[1729631501283,0.63764924,67432.0,67431.0,0.00045728]
[1729631502879,0.73004924,67432.0,67431.0,0.00045728]
[1729631503882,0.61464924,67432.0,67431.0,0.00045728]
[1729631504057,0.32855507,67432.0,67431.0,0.17435728]
[1729631504281,0.47751422,67432.0,67431.0,0.17435728]
[1729631504441,0.45525807,67432.0,67431.0,0.17435728]
[1729631504664,0.60355507,67432.0,67431.0,0.17435728]
[1729631506067,0.6174435,67432.0,67431.0,0.17435728]
[1729631506510,0.36443185,67432.0,67431.0,0.17435728]
[1729631506741,0.77179565,67432.0,67431.0,0.00045728]
[1729631506954,0.66063367,67432.0,67431.0,0.00045728]
[1729631507576,0.52845612,67432.0,67431.0,0.00045728]
[1729631508417,0.64665066,67432.0,67431.0,0.00045728]
[1729631508629,0.78003413,67432.0,67431.0,0.00045728]
[1729631508840,0.64665066,67432.0,67431.0,0.00045728]
[1729631510457,0.64664557,67432.0,67431.0,0.00045728]
[1729631510683,0.79363317,67432.0,67431.0,0.00045728]
[1729631511616,0.89363317,67432.0,67431.0,0.00045728]
[1729631511899,6.09359357,67432.0,67431.0,0.00045728]
[1729631512125,6.32322043,67432.0,67431.0,0.00045728]
[1729631512577,2.08526003,67432.0,67431.0,0.00045728]
[1729631512810,1.85563317,67432.0,67431.0,0.00045728]
[1729631515601,1.86241144,67432.0,67431.0,0.00045728]
[1729631517064,0.90041144,67432.0,67431.0,0.00045728]
[1729631517264,5.95041144,67432.0,67431.0,0.00045728]
[1729631517586,6.1800383,67432.0,67431.0,0.00045728]
[1729631523096,6.17995933,67432.0,67431.0,0.00045728]
[1729631525633,1.18275773,67432.0,67431.0,0.00045728]
[1729631525853,0.95317694,67432.0,67431.0,0.00045728]
[1729631527763,0.95318438,67432.0,67431.0,0.00045728]
[1729631528206,0.93930758,67432.0,67431.0,0.00045728]
[1729631528411,0.93930772,67432.0,67431.0,0.00045728]
[1729631531085,3.73630772,67432.0,67431.0,0.00045728]
[1729631531339,1.49189913,67432.0,67431.0,0.00045728]
[1729631531545,1.17130772,67432.0,67431.0,0.00045728]
[1729631532596,1.12030588,67432.0,67431.0,0.00045728]
[1729631533394,1.09030588,67432.0,67431.0,0.00045728]
[1729631535337,0.92130588,67432.0,67431.0,0.00045728]
[1729631535589,0.77431828,67432.0,67431.0,0.00045728]
[1729631536552,0.64431828,67432.0,67431.0,0.00045728]
[1729631536731,0.64781268,67432.0,67431.0,0.17535728]
[1729631536937,0.51453544,67432.0,67431.0,0.17535728]
[1729631537159,0.51454954,67432.0,67431.0,0.17535728]
[1729631537996,0.36625254,67432.0,67431.0,0.17535728]
[1729631538452,0.45510371,67432.0,67431.0,0.17535728]
[1729631538720,0.60340071,67432.0,67431.0,0.17535728]
[1729631540398,0.35054342,67432.0,67431.0,0.17535728]
[1729631541077,0.4171738,67432.0,67431.0,0.17535728]
[1729631542288,0.41347851,67432.0,67431.0,0.17535728]
[1729631543001,0.26518151,67432.0,67431.0,0.17535728]
[1729631543210,0.41347851,67432.0,67431.0,0.17535728]
[1729631543435,0.26518151,67432.0,67431.0,0.17535728]
[1729631543870,0.15609757,67432.0,67431.0,0.17535728]
[1729631544519,0.15609757,67432.0,67431.0,0.20772361]
[1729631544737,0.15609757,67432.0,67431.0,0.17535728]
[1729631545362,0.20050411,67432.0,67431.0,0.17535728]
[1729631547323,0.00713842,67432.0,67431.0,0.17535728]
[1729631547526,0.00713842,67432.0,67431.0,0.32365628]
[1729631547737,0.00713842,67432.0,67431.0,0.41634441]
[1729631548160,0.0017589,67432.0,67431.0,0.26804541]
[1729631548974,0.0017589,67432.0,67431.0,0.17535728]
[1729631552741,0.0017589,67432.0,67431.0,0.17423716]
[1729631553651,0.0017589,67432.0,67431.0,0.32253616]
[1729631554444,0.0017589,67432.0,67431.0,0.17423716]
[1729631554914,0.0017589,67432.0,67431.0,0.32253616]
[1729631557119,0.0017589,67432.0,67431.0,0.32336216]
[1729631557382,0.0017589,67432.0,67431.0,0.17506316]
[1729631558025,0.0017589,67432.0,67431.0,0.32336216]
[1729631558235,0.0017589,67432.0,67431.0,0.17506316]
[1729631558664,0.00964045,67432.0,67431.0,0.17506316]
[1729631558869,0.00964139,67432.0,67431.0,0.17506316]
[1729631565671,0.00964139,67432.0,67431.0,0.32336216]
[1729631566089,0.0017589,67432.0,67431.0,0.32336216]
[1729631568397,0.0017589,67432.0,67431.0,0.41602098]
[1729631568610,0.0017589,67432.0,67431.0,0.17506316]
[1729631568846,0.0017589,67432.0,67431.0,0.32336216]
[1729631569088,0.00964159,67432.0,67431.0,0.32336216]
[1729631569323,0.0017589,67432.0,67431.0,0.17506316]
[1729631569786,0.00964159,67432.0,67431.0,0.17506316]
[1729631570039,0.0017589,67432.0,67431.0,0.17506316]
[1729631570254,0.00964159,67432.0,67431.0,0.17506316]
[1729631570458,0.0017589,67432.0,67431.0,0.17506316]
[1729631570666,0.00964159,67432.0,67431.0,0.32336216]
[1729631570877,0.0017589,67432.0,67431.0,0.17506316]
[1729631571085,0.00964159,67432.0,67431.0,0.17506316]
[1729631571332,0.0017589,67432.0,67431.0,0.17506316]
[1729631571543,0.00964178,67432.0,67431.0,0.17506316]
[1729631571744,0.0017589,67432.0,67431.0,0.17506316]
[1729631571949,0.00964178,67432.0,67431.0,0.17506316]
[1729631572156,0.0017589,67432.0,67431.0,0.17506316]
[1729631572369,0.00964178,67432.0,67431.0,0.17506316]
[1729631572595,0.0017589,67432.0,67431.0,0.17506316]
[1729631572800,0.00964178,67432.0,67431.0,0.32336216]
[1729631573003,0.0017589,67432.0,67431.0,0.32336216]
[1729631574955,0.0017589,67432.0,67431.0,0.17506316]
[1729631575384,0.00964337,67432.0,67431.0,0.32336216]
[1729631575622,0.0017589,67432.0,67431.0,0.32336216]
[1729631575820,0.00964337,67432.0,67431.0,0.17506316]
[1729631576026,0.0017589,67432.0,67431.0,0.17506316]
[1729631576229,0.00964312,67432.0,67431.0,0.17506316]
[1729631576472,0.0017589,67432.0,67431.0,0.17506316]
[1729631576671,0.01200736,67432.0,67431.0,0.17506316]
[1729631576882,0.0017589,67432.0,67431.0,0.17506316]
[1729631577335,0.01200736,67432.0,67431.0,0.17506316]
[1729631577551,0.0017589,67432.0,67431.0,0.17506316]
[1729631577780,0.01200736,67432.0,67431.0,0.17506316]
[1729631577961,0.0017589,67432.0,67431.0,0.32336216]
[1729631578186,0.01200736,67432.0,67431.0,0.32336216]
[1729631578411,0.0017589,67432.0,67431.0,0.32336216]
[1729631579533,0.01752193,67432.0,67431.0,0.32336216]
[1729631579750,0.0017589,67432.0,67431.0,0.32336216]
[1729631579963,0.01752193,67432.0,67431.0,0.32336216]
[1729631580179,0.0017589,67432.0,67431.0,0.32336216]
[1729631580837,0.01752193,67432.0,67431.0,0.32336216]
[1729631581051,0.0017589,67432.0,67431.0,0.32336216]
[1729631593800,0.01566436,67432.0,67431.0,0.32336216]
[1729631594613,0.01566436,67432.0,67431.0,0.46118178]
[1729631594829,0.0017589,67432.0,67431.0,0.46118178]
[1729631603670,0.0017589,67432.0,67431.0,0.46318178]
[1729631603880,0.0017589,67432.0,67431.0,0.46118178]
[1729631605174,0.0017589,67432.0,67431.0,0.47118178]
[1729631605381,0.0017589,67432.0,67431.0,0.61758964]
[1729631605589,0.0017589,67432.0,67431.0,0.76654879]
[1729631605799,0.0017589,67432.0,67431.0,0.72214093]
[1729631606024,0.0017589,67432.0,67431.0,0.86158554]
[1729631606440,0.0017589,67432.0,67431.0,0.92813787]
[1729631606659,0.0017589,67432.0,67431.0,0.86158554]
[1729631606807,0.0017589,67432.0,67431.0,0.78869452]
[1729631607247,0.0017589,67432.0,67431.0,0.72214093]
[1729631608261,0.0017589,67432.0,67431.0,0.76649583]
[1729631608891,0.0017589,67432.0,67431.0,0.72214093]
[1729631610211,0.0017589,67432.0,67431.0,0.76648151]
[1729631613272,0.0017589,67432.0,67431.0,0.72214093]
[1729631613932,0.0017589,67432.0,67431.0,0.76648151]
[1729631614358,0.0017589,67432.0,67431.0,0.72214093]
[1729631625475,0.0017589,67432.0,67431.0,0.7644643]
[1729631625895,0.0017589,67432.0,67431.0,0.78862599]
[1729631626112,0.0017589,67432.0,67431.0,0.76646565]
[1729631626349,0.0017589,67432.0,67431.0,0.72214093]
[1729631626579,0.0017589,67432.0,67431.0,0.72014093]
[1729631627216,0.0017589,67432.0,67431.0,0.76446565]
[1729631627875,0.0017589,67432.0,67431.0,0.76646565]
[1729631630246,0.0017589,67432.0,67431.0,0.72214093]
[1729631632187,0.0017589,67432.0,67431.0,0.78862599]
[1729631633267,0.0017589,67432.0,67431.0,0.92750389]
[1729631634209,0.0017589,67432.0,67431.0,0.86101883]
[1729631635275,0.0017589,67432.0,67431.0,0.94965597]
[1729631639244,0.0017589,67432.0,67431.0,0.86101883]
[1729631640269,0.0017589,67432.0,67431.0,0.97181526]
[1729631644386,0.0017589,67432.0,67431.0,0.86101883]
[1729631651193,0.0017589,67432.0,67431.0,0.99397455]
[1729631652366,0.0017589,67432.0,67431.0,0.72214093]
[1729631653549,0.0017589,67432.0,67431.0,0.99496418]
[1729631656323,0.0017589,67432.0,67431.0,0.72214093]
[1729631664840,0.0017589,67432.0,67431.0,0.99512256]
[1729631665780,9e-07,67432.0,67431.0,0.86177667]
[1729631667941,9e-07,67432.0,67431.0,0.92177667]
[1729631671545,9e-07,67432.0,67431.0,0.86177667]
[1729631674605,9e-07,67432.0,67431.0,0.92177667]
[1729631679804,9e-07,67432.0,67431.0,0.86177667]
[1729631680233,9e-07,67432.0,67431.0,0.86269099]
[1729631685004,9e-07,67432.0,67431.0,0.86271205]
[1729631689734,9e-07,67432.0,67431.0,0.8627379]
[1729631694538,9e-07,67432.0,67431.0,0.86261068]
[1729631697775,9e-07,67432.0,67431.0,0.92261068]
[1729631699121,9e-07,67432.0,67431.0,0.92266814]
[1729631700994,9e-07,67432.0,67431.0,0.86266814]
[1729631701902,9e-07,67432.0,67431.0,0.92266814]
[1729631707098,9e-07,67432.0,67431.0,0.92275234]
[1729631709316,9e-07,67432.0,67431.0,0.99685234]
[1729631709535,9e-07,67432.0,67431.0,1.19369895]
[1729631710296,0.1763009,67432.0,67431.0,0.53883641]
[1729631710556,0.1763009,67432.0,67431.0,0.49003534]
[1729631710850,0.1763009,67432.0,67431.0,0.44556539]
[1729631711317,0.1763009,67432.0,67431.0,0.2826854]
[1729631712052,0.1763009,67432.0,67431.0,0.3826854]
[1729631712281,0.1763009,67432.0,67431.0,0.338225]
[1729631713732,0.1763009,67432.0,67431.0,0.4820467]
[1729631718247,0.1763009,67432.0,67431.0,0.233225]
[1729631718494,0.1763009,67432.0,67431.0,0.228225]
[1729631718737,0.1763009,67432.0,67431.0,0.233225]
[1729631719230,0.32526005,67432.0,67431.0,0.074926]
[1729631719514,0.32526005,67432.0,67423.0,0.03321514]
[1729631719515,0.14896005,67432.0,67426.0,0.005]
[1729631719757,0.14896005,67432.0,67413.0,0.23196409]
[1729631719758,0.1795,67425.0,67422.0,0.148318]
[1729631720002,0.32845915,67424.0,67423.0,0.148317]
[1729631720245,0.33624233,67424.0,67423.0,0.148317]
[1729631726028,0.33624233,67424.0,67423.0,0.149143]
[1729631728888,0.33624233,67424.0,67423.0,0.000826]
[1729631729122,0.33624233,67424.0,67423.0,0.149143]
[1729631732406,0.33624233,67424.0,67423.0,0.14822047]
[1729631733266,0.33624233,67424.0,67418.0,0.296656]
[1729631733267,0.0959,67422.0,67418.0,0.296656]
[1729631733488,0.22505915,67421.0,67420.0,0.148323]
[1729631733703,0.23278686,67421.0,67420.0,0.148323]
[1729631737835,0.23278686,67421.0,67420.0,0.149149]
[1729631741559,0.24663266,67421.0,67420.0,0.149149]
[1729631741786,0.24663265,67421.0,67420.0,0.149149]
[1729631743081,0.23278686,67421.0,67420.0,0.149149]
[1729631743307,0.24663568,67421.0,67420.0,0.149149]
[1729631745455,0.23278686,67421.0,67420.0,0.149149]
[1729631747356,0.24664902,67421.0,67420.0,0.149149]
[1729631748850,0.23278686,67421.0,67420.0,0.149149]
[1729631749065,0.24667617,67421.0,67420.0,0.149149]
[1729631750182,0.25087617,67421.0,67420.0,0.149149]
[1729631756312,0.25088098,67421.0,67420.0,0.149149]
[1729631756771,0.02582183,67421.0,67420.0,0.149149]
[1729631756982,0.02582183,67421.0,67420.0,0.159149]
[1729631757195,0.01389412,67421.0,67420.0,0.159149]
[1729631758264,0.001652,67424.0,67423.0,0.153317]
[1729631758473,0.01554539,67424.0,67423.0,0.153317]
[1729631758675,0.02747092,67424.0,67423.0,0.153317]
[1729631759704,0.01554539,67424.0,67423.0,0.153317]
[1729631761610,0.01554539,67424.0,67423.0,0.158317]
[1729631762312,0.001652,67424.0,67423.0,0.158317]
[1729631762535,0.01554396,67424.0,67423.0,0.158317]
[1729631765375,0.001652,67424.0,67423.0,0.158317]
[1729631765806,0.001652,67424.0,67423.0,0.23638318]
[1729631766720,0.001652,67424.0,67423.0,0.34098318]
[1729631766940,0.001652,67424.0,67423.0,0.43696253]
[1729631767185,0.001652,67424.0,67423.0,0.44196253]
[1729631767395,0.001652,67424.0,67423.0,0.44696253]
[1729631768492,0.001652,67424.0,67423.0,0.74228683]
[1729631768704,0.001652,67424.0,67423.0,0.69792168]
[1729631768918,0.001652,67424.0,67423.0,0.76446941]
[1729631769147,0.001652,67424.0,67423.0,0.90433207]
[1729631769385,0.001652,67424.0,67423.0,0.83778434]
[1729631769616,0.001652,67424.0,67423.0,0.92661081]
[1729631769827,0.001652,67424.0,67423.0,0.72761168]
[1729631770040,0.001652,67424.0,67423.0,0.92599082]
[1729631770680,0.001652,67424.0,67423.0,0.8371644]
[1729631771596,0.001652,67424.0,67423.0,0.76449858]
[1729631772460,0.001652,67424.0,67423.0,0.76532458]
[1729631772665,0.001652,67424.0,67423.0,0.69874768]
[1729631773503,0.001652,67424.0,67423.0,0.74311124]
[1729631774619,0.001652,67424.0,67423.0,0.69874768]
[1729631774825,0.001652,67424.0,67423.0,0.74311124]
[1729631776061,0.001294,67424.0,67423.0,0.74311124]
[1729631776778,0.001294,67424.0,67423.0,0.69874768]
[1729631800785,0.001294,67424.0,67423.0,0.80685132]
[1729631801424,0.001294,67424.0,67423.0,0.85117611]
[1729631802480,0.001294,67424.0,67423.0,0.80685132]
[1729631803367,0.001294,67424.0,67423.0,0.8733847]
[1729631804380,0.001294,67424.0,67423.0,1.01264972]
[1729631805494,0.001294,67424.0,67423.0,0.94611634]
[1729631807682,0.001294,67424.0,67423.0,1.03482751]
[1729631808525,0.001294,67424.0,67423.0,0.94611634]
[1729631809665,0.001294,67424.0,67423.0,1.0570053]
[1729631810565,0.001294,67424.0,67423.0,0.94611634]
[1729631811849,0.001294,67424.0,67423.0,0.94636879]
[1729631820747,0.001294,67424.0,67423.0,0.94665886]
[1729631829023,0.001294,67424.0,67423.0,0.94672337]
[1729631830228,0.001294,67424.0,67423.0,1.08019791]
[1729631830480,0.001294,67424.0,67423.0,1.05482701]
[1729631830713,9e-07,67432.0,67431.0,0.66660628]
[1729631830999,9e-07,67432.0,67431.0,1.08141921]
[1729631833716,9e-07,67432.0,67431.0,1.08348792]
[1729631836800,9e-07,67432.0,67431.0,1.08387239]
[1729631838516,9e-07,67432.0,67431.0,1.08392398]
[1729631839901,9e-07,67432.0,67431.0,1.21727665]
[1729631840130,9e-07,67432.0,67431.0,1.08392398]
[1729631840773,9e-07,67432.0,67431.0,1.19202762]
[1729631841197,9e-07,67432.0,67431.0,1.08392398]
[1729631842060,9e-07,67432.0,67431.0,1.14392398]
[1729631842482,9e-07,67432.0,67431.0,1.25202762]
[1729631843436,9e-07,67432.0,67431.0,1.14392398]
[1729631843653,9e-07,67432.0,67431.0,1.38525201]
[1729631843863,9e-07,67432.0,67431.0,1.14392398]
[1729631844068,9e-07,67432.0,67431.0,1.25202762]
[1729631845544,9e-07,67432.0,67431.0,1.38522003]
[1729631845955,9e-07,67432.0,67431.0,1.27711639]
[1729631846165,9e-07,67432.0,67431.0,1.38522003]
[1729631846597,9e-07,67432.0,67431.0,1.27711639]
[1729631846805,9e-07,67432.0,67431.0,1.38522003]
[1729631847003,9e-07,67432.0,67431.0,1.27711639]
[1729631847133,9e-07,67432.0,67431.0,1.38522003]
[1729631847347,9e-07,67432.0,67431.0,1.27711639]
[1729631847552,9e-07,67432.0,67431.0,1.38787315]
[1729631847896,9e-07,67432.0,67431.0,1.27976951]
[1729631848328,9e-07,67432.0,67431.0,1.38787315]
[1729631848944,9e-07,67432.0,67431.0,1.25469725]
[1729631849095,9e-07,67432.0,67431.0,1.38787315]
[1729631849299,9e-07,67432.0,67431.0,1.27976951]
[1729631849500,9e-07,67432.0,67431.0,1.14659361]
[1729631850529,9e-07,67432.0,67431.0,1.25469725]
[1729631850943,9e-07,67432.0,67431.0,1.14659361]
[1729631852144,9e-07,67432.0,67431.0,1.14656766]
[1729631853297,9e-07,67432.0,67431.0,1.08656766]
[1729631856139,9e-07,67432.0,67431.0,1.14656766]
[1729631861496,9e-07,67432.0,67431.0,1.1465825]
[1729631867609,9e-07,67432.0,67431.0,1.2797074]
[1729631871416,9e-07,67432.0,67431.0,1.1465825]
[1729631872863,9e-07,67432.0,67431.0,1.0865825]
[1729631875359,9e-07,67432.0,67431.0,1.28314974]
[1729631875567,9e-07,67432.0,67431.0,1.28256728]
[1729631875799,9e-07,67432.0,67431.0,1.08575733]
[1729631876271,9e-07,67432.0,67431.0,1.28256679]
[1729631876502,9e-07,67432.0,67431.0,1.08575733]
[1729631876711,9e-07,67432.0,67431.0,1.28260505]
[1729631877835,9e-07,67432.0,67431.0,1.08575733]
[1729631878041,9e-07,67432.0,67431.0,1.28261049]
[1729631880363,9e-07,67432.0,67431.0,1.08575733]
[1729631888305,9e-07,67432.0,67431.0,1.00625733]
[1729631890906,9e-07,67432.0,67431.0,1.06625733]
[1729631893624,0.0929009,67432.0,67431.0,0.62646832]
[1729631893886,0.1722009,67432.0,67431.0,0.58561281]
[1729631894199,0.1722009,67432.0,67431.0,0.63371645]
[1729631894414,0.1722009,67432.0,67431.0,0.7826756]
[1729631894640,0.1722009,67432.0,67431.0,0.63371645]
[1729631895384,0.1722009,67432.0,67431.0,0.74485879]
[1729631897291,0.1722009,67432.0,67431.0,0.63371645]
[1729631898232,0.1722009,67432.0,67431.0,0.72259343]
[1729631898445,0.1722009,67432.0,67431.0,0.87155258]
[1729631901595,0.1722009,67432.0,67431.0,0.7826756]
[1729631904688,0.1722009,67432.0,67431.0,0.84929892]
[1729631907855,0.1722009,67432.0,67431.0,0.70033977]
[1729631908340,0.1722009,67432.0,67431.0,0.5561296]
[1729631911318,0.1722009,67432.0,67431.0,0.48950628]
[1729631912485,0.1722009,67432.0,67431.0,0.5561296]
[1729631913565,0.1722009,67432.0,67431.0,0.48950628]
[1729631913994,0.1722009,67432.0,67431.0,0.5561296]
[1729631915507,0.1722009,67432.0,67431.0,0.5581296]
[1729631915943,0.0793009,67432.0,67431.0,0.5581296]
[1729631916150,0.0793009,67432.0,67431.0,0.55810223]
[1729631917628,9e-07,67432.0,67431.0,0.55610223]
[1729631918926,9e-07,67432.0,67431.0,0.48950628]
[1729631919578,9e-07,67432.0,67431.0,0.69263149]
[1729631920710,9e-07,67432.0,67431.0,0.84159064]
[1729631921143,9e-07,67432.0,67431.0,0.8414904]
[1729631921564,9e-07,67432.0,67431.0,0.69253125]
[1729631925548,9e-07,67432.0,67431.0,0.6259353]
[1729631926004,9e-07,67432.0,67431.0,0.69254346]
[1729631926488,9e-07,67432.0,67431.0,0.6259353]
[1729631926701,9e-07,67432.0,67431.0,0.62603621]
[1729631926936,9e-07,67432.0,67431.0,0.69264578]
[1729631927172,9e-07,67432.0,67431.0,0.62603621]
[1729631929317,9e-07,67432.0,67431.0,0.71484947]
[1729631929986,9e-07,67432.0,67431.0,0.62603621]
[1729631930255,9e-07,67432.0,67431.0,0.71490815]
[1729631930707,9e-07,67432.0,67431.0,0.8638673]
[1729631931809,9e-07,67432.0,67431.0,0.8658673]
[1729631932226,9e-07,67432.0,67431.0,0.77502685]
[1729631932673,9e-07,67432.0,67431.0,0.86388127]
[1729631933331,9e-07,67432.0,67431.0,0.77502685]
[1729631933551,9e-07,67432.0,67431.0,0.86388928]
[1729631934019,9e-07,67432.0,67431.0,0.71493013]
[1729631934216,9e-07,67432.0,67431.0,0.6260677]
[1729631934848,9e-07,67432.0,67431.0,0.62603604]
[1729631935331,9e-07,67432.0,67431.0,0.73712439]
[1729631937344,9e-07,67432.0,67431.0,0.62603604]
[1729631939590,9e-07,67432.0,67431.0,0.6262401]
[1729631942699,9e-07,67432.0,67431.0,0.62632555]
[1729631944719,9e-07,67432.0,67431.0,0.7752847]
[1729631945881,9e-07,67432.0,67431.0,0.62632555]
[1729631947436,9e-07,67432.0,67431.0,0.62629906]
[1729631951608,9e-07,67432.0,67431.0,0.51819542]
[1729631952024,9e-07,67432.0,67431.0,0.62629906]
[1729631952446,9e-07,67432.0,67431.0,0.51819542]
[1729631953684,9e-07,67432.0,67431.0,0.62629906]
[1729631961509,9e-07,67432.0,67431.0,0.62747802]
[1729631962143,9e-07,67432.0,67431.0,0.51937438]
[1729631964356,9e-07,67432.0,67431.0,0.66833353]
[1729631964612,9e-07,67432.0,67431.0,0.51937438]
[1729631965342,9e-07,67432.0,67431.0,0.62747802]
[1729631967293,9e-07,67432.0,67431.0,0.51937438]
[1729631967725,9e-07,67432.0,67431.0,0.62747802]
[1729631967940,9e-07,67432.0,67431.0,0.51937438]
[1729631971000,9e-07,67432.0,67431.0,0.51998138]
[1729631972448,9e-07,67432.0,67431.0,0.51997977]
[1729631975654,9e-07,67432.0,67431.0,0.52002711]
[1729631976624,9e-07,67432.0,67431.0,0.51965572]
[1729631980368,9e-07,67432.0,67431.0,0.51952398]